[Event "2nd Irena Warakomska Memorial-B"]
[Site "Suwalki"]
[Date "2018.08.04"]
[Round "5"]
[White "Kindler, Przemyslaw"]
[Black "Koziej, Maciej"]
[Result "0-1"]
[ECO "B30"]
[WhiteElo "2086"]
[BlackElo "2027"]
[Annotator "NA"]
[PlyCount "96"]
[EventDate "2018.08.01"]
[EventType "swiss"]
[EventCountry "POL"]
[SourceTitle "playchess.com"]
[Source "ChessBase"]
[SourceQuality "1"]
[TimeControl "40/5400+30:1800+30"]

1. e4 {[%emt 0:00:00]} c5 {[%emt 0:00:08]} 2. Nf3 {[%emt 0:00:00]} Nc6 {[%emt 0:00:19]} 3. d3 {[%emt 0:00:00]} g6 {[%emt 0:00:46]} 4. g3 {[%emt 0:00:00]} Bg7 {[%emt 0:00:28]} 5. Bg2 {[%emt 0:00:00]} d6 {[%emt 0:00:47]} 6. c3 {[%emt 0:00:00]} e5 {[%emt 0:01:27]} 7. O-O {[%emt 0:00:11]} Nge7 {[%emt 0:00:40]} 8. Be3 {[%emt 0:01:00]} O-O 9. Na3 {[%emt 0:01:30]} h6 {[%emt 0:07:58]} 10. Qd2 {[%emt 0:03:58]} Kh7 {[%emt 0:00:07]} 11. d4 {[%emt 0:00:20]} exd4 {[%emt 0:11:38]} 12. cxd4 {[%emt 0:00:07]} d5 {[%emt 0:00:04]} 13. exd5 {[%emt 0:04:09]} Nxd5 14. Rad1 {[%emt 0:03:25]} Nxe3 {[%emt 0:02:25]} 15. fxe3 {[%emt 0:00:05]} cxd4 {[%emt 0:00:25]} 16. exd4 {[%emt 0:01:25]} Bg4 {[%emt 0:00:32]} 17. Kh1 {[%emt 0:06:08]} Bxf3 {[%emt 0:03:01]} 18. Bxf3 {[%emt 0:03:29]} Nxd4 {[%emt 0:00:04]} 19. Bxb7 {[%emt 0:00:17]} Rb8 {[%emt 0:01:32]} 20. Bg2 {[%emt 0:00:11]} Nf5 {[%emt 0:04:27]} 21. Nc4 {[%emt 0:00:06]} Qc7 {[%emt 0:04:33]} 22. b3 {[%emt 0:01:41]} Rbd8 {[%emt 0:03:17]} 23. Qf2 {[%emt 0:01:26]} Bd4 {[%emt 0:01:32]} 24. Qf3 {[%emt 0:00:13]} h5 {[%emt 0:04:48]} 25. Bh3 {[%emt 0:01:39]} Nh6 {[%emt 0:00:10]} 26. Rd3 Qe7 {[%emt 0:03:36]} 27. Na5 {[%emt 0:12:31]} Bb6 {[%emt 0:05:34]} 28. Rxd8 {[%emt 0:00:07]} Qxd8 {[%emt 0:00:40]} 29. Nc6 {[%emt 0:00:02]} Qd2 {[%emt 0:01:14]} 30. Ne5 {[%emt 0:01:29]} Qd4 {[%emt 0:02:53]} 31. Nd7 {[%emt 0:03:35]} Rd8 {[%emt 0:00:11]} 32. Rd1 {[%emt 0:02:34]} Qb2 {[%emt 0:01:42]} 33. a4 {[%emt 0:02:00]} Kg7 {[%emt 0:01:09]} 34. Rf1 {[%emt 0:00:26]} Re8 {[%emt 0:03:55]} 35. Bg2 {[%emt 0:03:04]} Bd4 {[%emt 0:02:18]} 36. Qd5 {[%emt 0:06:17]} Re2 {[%emt 0:04:12]} 37. Qa8 {[%emt 0:13:31]} Rf2 {[%emt 0:05:49]} 38. Re1 {[%emt 0:13:50]} Ng4 {[%emt 0:04:46]} 39. Qf8+ {[%emt 0:01:47]} Kh7 {[%emt 0:00:06]} 40. Qe7 {[%emt 0:00:00]} Bg7 {[%emt 0:00:00]} 41. Qe4 {[%emt 0:04:01]} Rd2 {[%emt 0:10:44]} 42. Qb7 {[%emt 0:03:58]} Qd4 {[%emt 0:01:43]} 43. Nf8+ {[%emt 0:01:56]} Bxf8 {[%emt 0:00:05]} 44. Qxf7+ {[%emt 0:00:04]} Bg7 {[%emt 0:00:13]} 45. h3 {[%emt 0:00:23]} Nh6 {[%emt 0:04:53]} 46. Qb7 {[%emt 0:09:07]} Nf5 {[%emt 0:00:30]} 47. g4 {[%emt 0:02:14]} hxg4 {[%emt 0:01:37]} 48. Be4 {[%emt 0:10:01]} Ng3# 0-1

[Event "2nd Irena Warakomska Memorial-B"]
[Site "Suwalki"]
[Date "2018.08.04"]
[Round "5"]
[White "Kowalec, Maciej"]
[Black "Rudzinska, Michalina"]
[Result "1-0"]
[ECO "A45"]
[WhiteElo "2065"]
[BlackElo "2003"]
[Annotator "NA"]
[PlyCount "109"]
[EventDate "2018.08.01"]
[EventType "swiss"]
[EventCountry "POL"]
[SourceTitle "playchess.com"]
[Source "ChessBase"]
[SourceQuality "1"]
[TimeControl "40/5400+30:1800+30"]

1. d4 {[%emt 0:00:00]} Nf6 {[%emt 0:00:00]} 2. Bg5 {[%emt 0:00:00]} e6 {[%emt 0:00:21]} 3. e3 {[%emt 0:00:07]} c5 {[%emt 0:00:19]} 4. Nf3 {[%emt 0:01:47]} Be7 {[%emt 0:01:47]} 5. c4 {[%emt 0:04:35]} cxd4 {[%emt 0:03:07]} 6. exd4 {[%emt 0:01:05]} O-O {[%emt 0:04:26]} 7. Nc3 {[%emt 0:01:38]} d5 {[%emt 0:00:33]} 8. Be2 {[%emt 0:06:58]} a6 {[%emt 0:05:48]} 9. c5 {[%emt 0:12:16]} b6 {[%emt 0:04:44]} 10. b4 {[%emt 0:08:22]} Ne4 {[%emt 0:17:32]} 11. Bxe7 {[%emt 0:06:06]} Qxe7 {[%emt 0:00:24]} 12. Na4 {[%emt 0:03:59]} Nd7 {[%emt 0:05:17]} 13. O-O {[%emt 0:01:34]} Bb7 {[%emt 0:03:17]} 14. a3 {[%emt 0:10:23]} bxc5 {[%emt 0:03:31]} 15. bxc5 {[%emt 0:03:19]} e5 {[%emt 0:01:39]} 16. Nb6 {[%emt 0:03:52]} Nxb6 {[%emt 0:01:02]} 17. cxb6 {[%emt 0:00:20]} Nc3 {[%emt 0:08:23]} 18. Qd2 {[%emt 0:05:18]} Nxe2+ {[%emt 0:01:02]} 19. Qxe2 {[%emt 0:01:09]} e4 {[%emt 0:00:04]} 20. Ne5 {[%emt 0:10:48]} Qd6 {[%emt 0:01:43]} 21. Rfb1 {[%emt 0:02:41]} f6 {[%emt 0:01:22]} 22. Ng4 {[%emt 0:00:09]} Rfc8 {[%emt 0:01:01]} 23. Qb2 {[%emt 0:01:55]} Rc6 {[%emt 0:08:49]} 24. a4 {[%emt 0:01:29]} a5 {[%emt 0:00:16]} 25. Ne3 {[%emt 0:00:22]} Ra6 {[%emt 0:01:47]} 26. Qb5 {[%emt 0:02:17]} Rc8 {[%emt 0:12:43]} 27. g3 {[%emt 0:02:52]} g6 {[%emt 0:00:58]} 28. Ra2 {[%emt 0:00:57]} f5 {[%emt 0:00:23]} 29. Rc2 {[%emt 0:00:47]} Rxc2 {[%emt 0:00:49]} 30. Nxc2 {[%emt 0:00:24]} Ra8 {[%emt 0:03:42]} 31. Qc5 {[%emt 0:01:02]} Qc6 {[%emt 0:02:09]} 32. Rb5 {[%emt 0:02:39]} Kf7 {[%emt 0:01:43]} 33. Ne3 {[%emt 0:01:36]} Ke6 {[%emt 0:00:40]} 34. Rxa5 {[%emt 0:01:13]} Rxa5 {[%emt 0:00:06]} 35. Qxa5 {[%emt 0:00:04]} g5 {[%emt 0:00:27]} 36. Qc5 {[%emt 0:02:19]} Qxc5 {[%emt 0:04:38]} 37. dxc5 {[%emt 0:00:01]} d4 {[%emt 0:00:15]} 38. Nc4 {[%emt 0:00:40]} d3 {[%emt 0:00:36]} 39. Kf1 {[%emt 0:01:46]} Kd5 {[%emt 0:01:09]} 40. Nd6 {[%emt 0:00:00]} Ba6 {[%emt 0:00:00]} 41. Ke1 {[%emt 0:01:06]} Kxc5 {[%emt 0:09:17]} 42. b7 {[%emt 0:00:11]} Bxb7 {[%emt 0:00:04]} 43. Nxb7+ {[%emt 0:00:03]} Kb4 {[%emt 0:00:06]} 44. Nd6 {[%emt 0:00:35]} Kxa4 {[%emt 0:00:34]} 45. Nxf5 {[%emt 0:00:07]} Kb3 {[%emt 0:00:13]} 46. Nd6 {[%emt 0:03:11]} Kc2 {[%emt 0:02:26]} 47. Nxe4 {[%emt 0:00:05]} g4 {[%emt 0:00:06]} 48. Nd2 {[%emt 0:00:13]} h5 {[%emt 0:02:47]} 49. f4 {[%emt 0:00:46]} gxf3 {[%emt 0:00:05]} 50. Nxf3 {[%emt 0:00:03]} d2+ {[%emt 0:00:45]} 51. Nxd2 {[%emt 0:00:05]} Kd3 {[%emt 0:00:03]} 52. Nf1 {[%emt 0:00:44]} Ke4 {[%emt 0:00:14]} 53. Kf2 {[%emt 0:00:08]} Kf5 {[%emt 0:00:16]} 54. Kf3 {[%emt 0:00:06]} Kg5 {[%emt 0:00:12]} 55. Ne3 {[%emt 0:00:17]} 1-0

[Event "2nd Irena Warakomska Memorial-B"]
[Site "Suwalki"]
[Date "2018.08.04"]
[Round "5"]
[White "Mazalon, Mariusz"]
[Black "Litner, Igor"]
[Result "1/2-1/2"]
[ECO "A80"]
[WhiteElo "2055"]
[BlackElo "1990"]
[Annotator "NA"]
[PlyCount "59"]
[EventDate "2018.08.01"]
[EventType "swiss"]
[EventCountry "POL"]
[SourceTitle "playchess.com"]
[Source "ChessBase"]
[SourceQuality "1"]
[TimeControl "40/5400+30:1800+30"]

1. d4 {[%emt 0:00:44]} f5 2. Nf3 {[%emt 0:00:18]} Nf6 {[%emt 0:04:42]} 3. g3 {[%emt 0:00:24]} e6 {[%emt 0:00:05]} 4. Bg2 d5 {[%emt 0:00:08]} 5. O-O {[%emt 0:01:20]} Bd6 {[%emt 0:00:19]} 6. c4 {[%emt 0:01:30]} c6 {[%emt 0:02:12]} 7. b3 {[%emt 0:06:17]} O-O {[%emt 0:05:01]} 8. Ba3 {[%emt 0:02:00]} Bxa3 {[%emt 0:00:25]} 9. Nxa3 {[%emt 0:05:04]} Qd6 {[%emt 0:04:14]} 10. Qc1 {[%emt 0:00:11]} Nbd7 {[%emt 0:04:40]} 11. Qb2 {[%emt 0:07:07]} a5 {[%emt 0:10:44]} 12. Rac1 {[%emt 0:06:45]} b6 {[%emt 0:00:30]} 13. cxd5 {[%emt 0:00:30]} exd5 {[%emt 0:00:30]} 14. Ne5 {[%emt 0:00:30]} Bb7 {[%emt 0:10:25]} 15. Rc2 {[%emt 0:07:45]} Qe6 {[%emt 0:06:36]} 16. Nd3 {[%emt 0:07:01]} Ba6 17. Nb1 {[%emt 0:00:10]} Bxd3 {[%emt 0:03:09]} 18. exd3 Rae8 {[%emt 0:03:11]} 19. Nd2 {[%emt 0:14:54]} f4 20. Nf3 {[%emt 0:02:30]} fxg3 {[%emt 0:02:27]} 21. hxg3 {[%emt 0:04:52]} Qd6 {[%emt 0:09:37]} 22. Ne5 Rxe5 {[%emt 0:00:02]} 23. dxe5 {[%emt 0:00:58]} Nxe5 {[%emt 0:04:32]} 24. d4 {[%emt 0:08:53]} Nfg4 {[%emt 0:03:18]} 25. dxe5 Qh6 26. Re1 {[%emt 0:01:35]} Qh2+ {[%emt 0:00:38]} 27. Kf1 {[%emt 0:04:04]} Qxg3 28. Kg1 Qh2+ {[%emt 0:00:35]} 29. Kf1 {[%emt 0:00:31]} Qg3 {[%emt 0:00:09]} 30. Kg1 1/2-1/2

[Event "2nd Irena Warakomska Memorial-B"]
[Site "Suwalki"]
[Date "2018.08.04"]
[Round "5"]
[White "Zianowicz, Dominik"]
[Black "Barchuk, Irina"]
[Result "1-0"]
[ECO "A48"]
[WhiteElo "1950"]
[BlackElo "2061"]
[Annotator "NA"]
[PlyCount "61"]
[EventDate "2018.08.01"]
[EventType "swiss"]
[EventCountry "POL"]
[SourceTitle "playchess.com"]
[Source "ChessBase"]
[SourceQuality "1"]
[TimeControl "40/5400+30:1800+30"]

1. d4 {[%emt 0:00:00]} Nf6 {[%emt 0:00:00]} 2. Nf3 {[%emt 0:00:00]} g6 {[%emt 0:00:00]} 3. c4 {[%emt 0:00:00]} Bg7 {[%emt 0:00:00]} 4. Nc3 {[%emt 0:00:03]} O-O {[%emt 0:00:00]} 5. Bg5 {[%emt 0:00:14]} c5 {[%emt 0:01:10]} 6. d5 {[%emt 0:01:11]} a6 {[%emt 0:01:32]} 7. e4 {[%emt 0:00:22]} d6 {[%emt 0:00:24]} 8. Qc2 {[%emt 0:00:41]} h6 9. Bh4 {[%emt 0:02:12]} Qa5 {[%emt 0:08:59]} 10. Bd3 {[%emt 0:06:22]} Bd7 {[%emt 0:07:11]} 11. O-O {[%emt 0:04:04]} b5 {[%emt 0:00:02]} 12. a3 {[%emt 0:06:15]} bxc4 {[%emt 0:01:56]} 13. Bxc4 {[%emt 0:00:17]} Bb5 {[%emt 0:00:04]} 14. Nd2 {[%emt 0:01:42]} Nbd7 {[%emt 0:00:45]} 15. f4 {[%emt 0:11:17]} Rab8 {[%emt 0:00:45]} 16. Kh1 {[%emt 0:02:04]} Qc7 {[%emt 0:00:09]} 17. Rae1 {[%emt 0:01:11]} Rb7 {[%emt 0:01:12]} 18. a4 {[%emt 0:03:59]} Bxc4 {[%emt 0:00:13]} 19. Nxc4 {[%emt 0:00:06]} Rb4 {[%emt 0:02:38]} 20. b3 {[%emt 0:01:24]} Rfb8 {[%emt 0:12:00]} 21. e5 Ne8 {[%emt 0:19:11]} 22. Bxe7 {[%emt 0:08:38]} Nxe5 {[%emt 0:00:13]} 23. fxe5 {[%emt 0:07:09]} Qxe7 {[%emt 0:00:04]} 24. exd6 {[%emt 0:01:55]} Qd8 {[%emt 0:00:03]} 25. Ne4 {[%emt 0:10:20]} Bd4 {[%emt 0:04:11]} 26. Qc1 {[%emt 0:15:07]} Kg7 {[%emt 0:03:37]} 27. Rxf7+ {[%emt 0:03:21]} Kxf7 {[%emt 0:00:14]} 28. Qxh6 {[%emt 0:00:04]} Bf6 {[%emt 0:17:42]} 29. Rf1 {[%emt 0:08:01]} R8b7 {[%emt 0:07:53]} 30. Qh7+ {[%emt 0:00:36]} Ng7 {[%emt 0:00:11]} 31. Ne5+ {[%emt 0:00:09]} 1-0

[Event "2nd Irena Warakomska Memorial-B"]
[Site "Suwalki"]
[Date "2018.08.04"]
[Round "5"]
[White "Krasiewicz, Robert"]
[Black "Rak, Tomasz"]
[Result "0-1"]
[ECO "A15"]
[WhiteElo "1923"]
[BlackElo "2007"]
[Annotator "NA"]
[PlyCount "120"]
[EventDate "2018.08.01"]
[EventType "swiss"]
[EventCountry "POL"]
[SourceTitle "playchess.com"]
[Source "ChessBase"]
[SourceQuality "1"]
[TimeControl "40/5400+30:1800+30"]

1. c4 {[%emt 0:00:00]} Nf6 {[%emt 0:00:00]} 2. g3 {[%emt 0:00:00]} g6 {[%emt 0:00:00]} 3. Bg2 {[%emt 0:00:00]} Bg7 {[%emt 0:00:00]} 4. Nc3 {[%emt 0:00:02]} O-O {[%emt 0:00:00]} 5. e4 {[%emt 0:00:32]} d6 {[%emt 0:00:00]} 6. Nge2 {[%emt 0:00:33]} e5 {[%emt 0:01:27]} 7. O-O {[%emt 0:04:36]} a5 {[%emt 0:01:29]} 8. d3 {[%emt 0:00:41]} Na6 {[%emt 0:03:19]} 9. h3 {[%emt 0:00:28]} Nd7 10. g4 {[%emt 0:08:23]} Ndc5 {[%emt 0:04:43]} 11. f4 {[%emt 0:00:40]} exf4 {[%emt 0:00:59]} 12. Bxf4 {[%emt 0:01:32]} Ne6 {[%emt 0:02:21]} 13. Be3 {[%emt 0:00:51]} c6 {[%emt 0:02:59]} 14. Qd2 {[%emt 0:01:50]} Nac7 {[%emt 0:01:33]} 15. d4 {[%emt 0:11:23]} Qe7 {[%emt 0:17:44]} 16. Rae1 a4 17. d5 {[%emt 0:18:33]} Nc5 {[%emt 0:01:40]} 18. Bxc5 {[%emt 0:00:26]} dxc5 19. dxc6 {[%emt 0:10:47]} bxc6 {[%emt 0:02:14]} 20. e5 {[%emt 0:00:14]} Qxe5 {[%emt 0:02:11]} 21. Bxc6 {[%emt 0:00:27]} Ra6 {[%emt 0:00:58]} 22. Bg2 {[%emt 0:07:23]} Ne6 {[%emt 0:06:43]} 23. Nf4 {[%emt 0:07:47]} Qd4+ {[%emt 0:01:08]} 24. Qxd4 {[%emt 0:00:06]} Bxd4+ {[%emt 0:01:49]} 25. Kh1 {[%emt 0:00:01]} Nxf4 {[%emt 0:01:59]} 26. Rxf4 {[%emt 0:00:04]} a3 {[%emt 0:08:02]} 27. Nb5 {[%emt 0:00:22]} axb2 {[%emt 0:05:47]} 28. Nxd4 {[%emt 0:00:33]} cxd4 {[%emt 0:00:04]} 29. Rxd4 {[%emt 0:01:37]} Rxa2 {[%emt 0:00:38]} 30. Rb1 {[%emt 0:00:11]} Be6 {[%emt 0:02:33]} 31. Bf1 {[%emt 0:06:59]} Ra1 {[%emt 0:03:29]} 32. Rdd1 {[%emt 0:00:13]} Rfa8 {[%emt 0:00:57]} 33. Kg2 {[%emt 0:00:17]} h5 34. Be2 {[%emt 0:00:35]} hxg4 {[%emt 0:03:06]} 35. hxg4 {[%emt 0:00:05]} Rxb1 {[%emt 0:00:44]} 36. Rxb1 {[%emt 0:00:01]} Ra2 {[%emt 0:00:30]} 37. c5 Kf8 {[%emt 0:01:26]} 38. Kg3 {[%emt 0:04:22]} g5 {[%emt 0:01:09]} 39. Bd1 Ra1 40. Bc2 {[%emt 0:00:00]} Rxb1 {[%emt 0:00:00]} 41. Bxb1 {[%emt 0:03:40]} Ke7 {[%emt 0:04:58]} 42. Kf3 {[%emt 0:02:57]} Kd7 43. Ke3 {[%emt 0:00:07]} Bxg4 {[%emt 0:02:37]} 44. Kd4 Be6 {[%emt 0:02:02]} 45. Kc3 {[%emt 0:00:55]} Kc6 {[%emt 0:00:16]} 46. Kxb2 Kxc5 {[%emt 0:00:07]} 47. Kc3 {[%emt 0:00:11]} Kd5 {[%emt 0:00:54]} 48. Kd2 {[%emt 0:00:25]} Kd4 {[%emt 0:00:17]} 49. Ke2 {[%emt 0:00:08]} Ke5 {[%emt 0:01:41]} 50. Kf3 {[%emt 0:00:06]} f5 {[%emt 0:00:25]} 51. Bc2 {[%emt 0:00:32]} f4 {[%emt 0:00:22]} 52. Bd1 {[%emt 0:01:05]} g4+ 53. Kg2 {[%emt 0:00:06]} Kf5 {[%emt 0:02:13]} 54. Ba4 Bd5+ {[%emt 0:00:26]} 55. Kf1 {[%emt 0:01:09]} Kg5 {[%emt 0:00:15]} 56. Bd7 {[%emt 0:00:23]} Kh4 57. Kg1 {[%emt 0:00:31]} Kg3 {[%emt 0:01:32]} 58. Bb5 {[%emt 0:00:08]} f3 59. Kf1 f2 {[%emt 0:01:51]} 60. Ke2 {[%emt 0:01:12]} Bg2 0-1

[Event "2nd Irena Warakomska Memorial-B"]
[Site "Suwalki"]
[Date "2018.08.05"]
[Round "6"]
[White "Samborski, Henryk"]
[Black "Czarniecka, Aleksandra"]
[Result "1-0"]
[ECO "B84"]
[WhiteElo "2098"]
[BlackElo "1980"]
[Annotator "NA"]
[PlyCount "117"]
[EventDate "2018.08.01"]
[EventType "swiss"]
[EventCountry "POL"]
[SourceTitle "playchess.com"]
[Source "ChessBase"]
[SourceQuality "1"]
[TimeControl "40/5400+30:1800+30"]

1. e4 {[%emt 0:00:00]} c5 {[%emt 0:00:00]} 2. Nf3 {[%emt 0:00:00]} d6 {[%emt 0:00:00]} 3. d4 {[%emt 0:00:00]} cxd4 {[%emt 0:00:07]} 4. Nxd4 {[%emt 0:00:01]} Nf6 {[%emt 0:00:15]} 5. Nc3 {[%emt 0:00:05]} a6 {[%emt 0:00:06]} 6. Be2 {[%emt 0:02:33]} e6 {[%emt 0:02:11]} 7. O-O {[%emt 0:01:04]} Be7 {[%emt 0:02:45]} 8. f4 {[%emt 0:04:58]} Qc7 {[%emt 0:01:30]} 9. Bf3 {[%emt 0:06:33]} O-O {[%emt 0:02:29]} 10. Kh1 {[%emt 0:01:00]} Nc6 {[%emt 0:01:53]} 11. Be3 {[%emt 0:07:36]} Bd7 {[%emt 0:02:37]} 12. Nb3 {[%emt 0:01:49]} b5 {[%emt 0:04:32]} 13. a3 {[%emt 0:02:45]} Bc8 {[%emt 0:02:54]} 14. Qe1 {[%emt 0:09:34]} Bb7 {[%emt 0:01:47]} 15. g4 {[%emt 0:02:32]} Rfe8 {[%emt 0:04:35]} 16. g5 {[%emt 0:05:31]} Nd7 {[%emt 0:00:20]} 17. Bg2 {[%emt 0:06:59]} b4 {[%emt 0:13:31]} 18. axb4 {[%emt 0:01:38]} Nxb4 {[%emt 0:00:45]} 19. Qf2 d5 {[%emt 0:13:15]} 20. e5 {[%emt 0:06:19]} a5 {[%emt 0:10:11]} 21. Rfc1 {[%emt 0:00:44]} Bc6 {[%emt 0:03:09]} 22. Nd4 {[%emt 0:01:31]} g6 {[%emt 0:06:12]} 23. h4 {[%emt 0:02:22]} Nc5 {[%emt 0:04:51]} 24. h5 {[%emt 0:01:40]} Ne4 {[%emt 0:00:44]} 25. Nxe4 {[%emt 0:04:29]} dxe4 {[%emt 0:00:04]} 26. Nxc6 {[%emt 0:06:26]} Qxc6 {[%emt 0:00:36]} 27. Qe2 {[%emt 0:00:35]} Bc5 {[%emt 0:05:12]} 28. Bd2 {[%emt 0:00:57]} Qb6 {[%emt 0:03:49]} 29. Bxe4 {[%emt 0:00:42]} Rad8 30. Rf1 {[%emt 0:04:30]} Nc6 {[%emt 0:01:52]} 31. Qg2 {[%emt 0:02:01]} Nb4 32. Rf3 {[%emt 0:04:39]} Bf8 {[%emt 0:01:20]} 33. hxg6 {[%emt 0:01:55]} hxg6 34. Be3 {[%emt 0:01:51]} Qb5 {[%emt 0:05:32]} 35. Qf1 {[%emt 0:00:19]} Qxf1+ {[%emt 0:00:27]} 36. Rfxf1 {[%emt 0:00:04]} Nd5 {[%emt 0:04:21]} 37. Bc1 {[%emt 0:00:40]} Bc5 {[%emt 0:01:43]} 38. Rxa5 {[%emt 0:00:38]} Be3 {[%emt 0:00:50]} 39. Bxd5 {[%emt 0:00:23]} Bxc1 {[%emt 0:00:06]} 40. Rxc1 {[%emt 0:00:00]} exd5 {[%emt 0:00:00]} 41. Kg2 {[%emt 0:06:42]} Rb8 42. b3 {[%emt 0:05:57]} Rec8 {[%emt 0:06:12]} 43. Rxd5 {[%emt 0:00:10]} Rxb3 {[%emt 0:00:11]} 44. cxb3 {[%emt 0:00:06]} Rxc1 {[%emt 0:00:03]} 45. Rd8+ {[%emt 0:00:09]} Kg7 {[%emt 0:00:08]} 46. Rb8 {[%emt 0:00:24]} Rc3 {[%emt 0:01:15]} 47. b4 {[%emt 0:00:51]} Rb3 {[%emt 0:00:03]} 48. Kf2 {[%emt 0:00:38]} Rc3 {[%emt 0:00:25]} 49. Ke2 {[%emt 0:00:46]} Rb3 {[%emt 0:00:09]} 50. b5 Rb4 {[%emt 0:01:32]} 51. Ke3 {[%emt 0:01:58]} Rb3+ {[%emt 0:00:13]} 52. Ke4 {[%emt 0:00:06]} Rb4+ {[%emt 0:00:04]} 53. Kd5 {[%emt 0:00:28]} Rxf4 {[%emt 0:00:20]} 54. b6 {[%emt 0:00:08]} Rg4 {[%emt 0:04:12]} 55. Rc8 {[%emt 0:01:15]} Rb4 {[%emt 0:00:31]} 56. Kc6 {[%emt 0:00:15]} Rc4+ {[%emt 0:02:29]} 57. Kb7 {[%emt 0:00:31]} Re4 {[%emt 0:00:29]} 58. Rc5 {[%emt 0:00:08]} Rb4 {[%emt 0:00:51]} 59. Kc7 {[%emt 0:00:08]} 1-0

[Event "2nd Irena Warakomska Memorial-B"]
[Site "Suwalki"]
[Date "2018.08.05"]
[Round "6"]
[White "Koziej, Maciej"]
[Black "Nikitin, Aleksander I"]
[Result "1/2-1/2"]
[ECO "A46"]
[WhiteElo "2027"]
[BlackElo "2036"]
[Annotator "NA"]
[PlyCount "81"]
[EventDate "2018.08.01"]
[EventType "swiss"]
[EventCountry "POL"]
[SourceTitle "playchess.com"]
[Source "ChessBase"]
[SourceQuality "1"]
[TimeControl "40/5400+30:1800+30"]

1. d4 {[%emt 0:00:00]} Nf6 {[%emt 0:00:00]} 2. Nf3 {[%emt 0:00:17]} d6 {[%emt 0:00:00]} 3. g3 {[%emt 0:00:46]} Nbd7 {[%emt 0:00:36]} 4. Bg2 {[%emt 0:00:50]} c6 {[%emt 0:00:29]} 5. O-O {[%emt 0:01:14]} e5 {[%emt 0:00:12]} 6. c4 {[%emt 0:05:25]} Be7 {[%emt 0:01:09]} 7. Nc3 {[%emt 0:01:48]} O-O {[%emt 0:00:50]} 8. Qc2 {[%emt 0:02:59]} Qc7 {[%emt 0:01:35]} 9. h3 {[%emt 0:03:00]} Re8 {[%emt 0:06:22]} 10. Be3 {[%emt 0:12:10]} b6 {[%emt 0:02:22]} 11. Rfd1 {[%emt 0:08:21]} Bb7 {[%emt 0:03:05]} 12. Rac1 {[%emt 0:02:32]} Rac8 {[%emt 0:21:40]} 13. g4 {[%emt 0:13:37]} Rcd8 {[%emt 0:14:07]} 14. Qb3 {[%emt 0:06:49]} Qb8 15. d5 cxd5 {[%emt 0:03:51]} 16. cxd5 {[%emt 0:00:52]} Rc8 {[%emt 0:02:07]} 17. g5 {[%emt 0:03:59]} Nh5 {[%emt 0:04:19]} 18. Qa4 {[%emt 0:00:21]} Nf8 19. Qh4 g6 {[%emt 0:01:33]} 20. Nh2 {[%emt 0:08:29]} Ng7 {[%emt 0:16:49]} 21. Be4 Nf5 {[%emt 0:10:08]} 22. Qg4 {[%emt 0:03:08]} Rc4 {[%emt 0:01:17]} 23. b3 {[%emt 0:02:55]} Bc8 24. Qg2 {[%emt 0:02:36]} Nxe3 {[%emt 0:02:13]} 25. fxe3 {[%emt 0:00:06]} Rc7 26. Bd3 {[%emt 0:03:30]} f5 {[%emt 0:02:20]} 27. gxf6 {[%emt 0:00:06]} Bxf6 {[%emt 0:00:01]} 28. Ne4 {[%emt 0:00:06]} Be7 {[%emt 0:03:29]} 29. Bb5 {[%emt 0:00:05]} Rxc1 {[%emt 0:01:01]} 30. Rxc1 Nd7 31. Ng4 {[%emt 0:02:50]} Rf8 {[%emt 0:02:24]} 32. b4 Nf6 {[%emt 0:01:04]} 33. Ngxf6+ {[%emt 0:04:09]} Bxf6 {[%emt 0:00:01]} 34. Rf1 {[%emt 0:00:32]} Be7 35. Rxf8+ Kxf8 {[%emt 0:01:27]} 36. Qf3+ {[%emt 0:01:37]} Kg7 37. Be8 {[%emt 0:00:45]} Bf5 {[%emt 0:00:46]} 38. Bc6 Qf8 {[%emt 0:00:44]} 39. Kg2 {[%emt 0:02:32]} a5 {[%emt 0:00:44]} 40. b5 {[%emt 0:00:00]} Bh4 {[%emt 0:00:00]} 41. Nd2 1/2-1/2

[Event "2nd Irena Warakomska Memorial-B"]
[Site "Suwalki"]
[Date "2018.08.05"]
[Round "6"]
[White "Rak, Tomasz"]
[Black "Kowalec, Maciej"]
[Result "1/2-1/2"]
[ECO "C77"]
[WhiteElo "2007"]
[BlackElo "2065"]
[Annotator "NA"]
[PlyCount "20"]
[EventDate "2018.08.01"]
[EventType "swiss"]
[EventCountry "POL"]
[SourceTitle "playchess.com"]
[Source "ChessBase"]
[SourceQuality "1"]
[TimeControl "40/5400+30:1800+30"]

1. e4 {[%emt 0:00:00]} e5 {[%emt 0:00:00]} 2. Nf3 {[%emt 0:00:00]} Nc6 {[%emt 0:00:00]} 3. Bb5 {[%emt 0:00:00]} a6 {[%emt 0:00:01]} 4. Ba4 {[%emt 0:00:00]} Nf6 {[%emt 0:00:13]} 5. d3 {[%emt 0:00:00]} d6 {[%emt 0:00:50]} 6. O-O {[%emt 0:00:20]} b5 {[%emt 0:00:24]} 7. Bb3 {[%emt 0:00:05]} Be7 {[%emt 0:00:11]} 8. h3 {[%emt 0:00:20]} O-O {[%emt 0:00:15]} 9. c3 {[%emt 0:00:10]} Na5 {[%emt 0:00:38]} 10. Bc2 {[%emt 0:00:37]} c5 {[%emt 0:00:20]} 1/2-1/2

[Event "2nd Irena Warakomska Memorial-B"]
[Site "Suwalki"]
[Date "2018.08.05"]
[Round "6"]
[White "Marinc, Damir"]
[Black "Mazalon, Mariusz"]
[Result "1-0"]
[ECO "A43"]
[WhiteElo "1931"]
[BlackElo "2055"]
[Annotator "NA"]
[PlyCount "75"]
[EventDate "2018.08.01"]
[EventType "swiss"]
[EventCountry "POL"]
[SourceTitle "playchess.com"]
[Source "ChessBase"]
[SourceQuality "1"]
[TimeControl "40/5400+30:1800+30"]

1. d4 {[%emt 0:00:09]} c5 {[%emt 0:04:22]} 2. d5 {[%emt 0:00:15]} d6 {[%emt 0:00:17]} 3. c4 {[%emt 0:00:19]} g6 {[%emt 0:00:09]} 4. Nc3 {[%emt 0:00:23]} Bg7 {[%emt 0:01:50]} 5. e4 {[%emt 0:01:01]} e6 {[%emt 0:00:28]} 6. Be2 {[%emt 0:06:16]} Ne7 {[%emt 0:02:22]} 7. Nf3 {[%emt 0:01:53]} O-O {[%emt 0:01:18]} 8. h4 {[%emt 0:03:24]} exd5 {[%emt 0:02:55]} 9. cxd5 {[%emt 0:15:43]} Bg4 {[%emt 0:07:13]} 10. Be3 {[%emt 0:04:21]} Nd7 {[%emt 0:23:06]} 11. Qd2 {[%emt 0:02:03]} Bxf3 12. Bxf3 {[%emt 0:00:22]} Ne5 {[%emt 0:06:13]} 13. Be2 {[%emt 0:12:57]} f5 14. h5 {[%emt 0:00:58]} a6 {[%emt 0:10:15]} 15. hxg6 {[%emt 0:11:31]} hxg6 {[%emt 0:05:48]} 16. Bh6 Nf7 {[%emt 0:00:03]} 17. Bxg7 {[%emt 0:00:52]} Kxg7 {[%emt 0:12:04]} 18. g4 {[%emt 0:06:31]} f4 {[%emt 0:00:30]} 19. Qxf4 {[%emt 0:00:30]} g5 {[%emt 0:00:30]} 20. Qd2 {[%emt 0:00:30]} Ng6 {[%emt 0:00:30]} 21. O-O-O {[%emt 0:00:30]} Nfe5 {[%emt 0:00:30]} 22. Rh2 Qf6 23. Rdh1 Rh8 24. Nd1 Rxh2 25. Rxh2 Rh8 26. Rh5 Nf4 27. Rxh8 Kxh8 28. Ne3 Nxe2+ 29. Qxe2 Qf4 30. Qd2 Qxe4 31. Qa5 Nd3+ 32. Kd2 Nf4 33. Qd8+ Kh7 34. Qd7+ Kg8 35. Qc8+ Kg7 36. Nf5+ Kf6 37. Qh8+ Kg6 38. Qg7# 1-0